lending/lending_fUSD_20240112
["ID","MTS","AMOUNT","RATE_DAILY","PERIOD"]
[311384088,1705072246924,-500.0,0.00022583,2]
[311384090,1705072246933,-527.46427374,0.00022583,2]
[311384092,1705072246947,-249.45118476,0.00022583,2]
[311384094,1705072246956,-517.59621628,0.00022583,2]
[311384096,1705072246965,-484.98396882,0.00022583,2]
[311384098,1705072246974,-500.0,0.00022583,2]
[311384100,1705072246985,-501.07093751,0.00022583,2]
[311384102,1705072246995,-514.06992869,0.00022583,2]
[311384104,1705072247005,-502.43727228,0.00022583,2]
[311384106,1705072247014,-512.02472198,0.00022583,2]
[311384108,1705072247023,-502.36207978,0.00022583,2]
[311384109,1705072247033,-500.0,0.00022583,2]
[311384111,1705072247042,-503.0833164,0.00022583,2]
[311384113,1705072247051,-500.0,0.00022583,2]
[311384115,1705072247061,-500.95819876,0.00022583,2]
[311384117,1705072247070,-500.49866084,0.00022583,2]
[311384120,1705072247080,-500.0,0.00022583,2]
[311384122,1705072247089,-500.0,0.00022583,2]
[311384124,1705072247099,-554.44353284,0.00022596,2]
[311384126,1705072247108,-290.28162874,0.0002261,2]
[311384128,1705072247118,-554.44353284,0.00022634,2]
[311384130,1705072247128,-437.2662,0.00022655,2]
[311384132,1705072247139,-160.93328731,0.00022662,2]
[311384134,1705072247149,-554.44353284,0.00022672,2]
[311384136,1705072247159,-174.54,0.00022695,2]
[311384138,1705072247168,-554.44353284,0.0002271,2]
[311384140,1705072247178,-154.36,0.0002274,2]
[311384142,1705072247189,-500.0,0.0002274,2]
[311384144,1705072247198,-554.44353284,0.00022748,2]
[311384146,1705072247208,-500.0,0.00022754,2]
[311384148,1705072247217,-500.0,0.00022754,2]
[311384150,1705072247227,-500.0,0.00022754,2]
[311384152,1705072247237,-500.0,0.00022754,2]
[311384154,1705072247246,-500.0,0.00022754,2]
[311384182,1705072247486,-259.52309012,0.00022754,2]
[311384185,1705072247496,-514.25922566,0.00022754,2]
[311384187,1705072247506,-500.0,0.00022754,2]
[311384189,1705072247515,-500.0,0.00022754,2]
[311384191,1705072247524,-500.0,0.00022754,2]
[311384193,1705072247533,-500.0,0.00022754,2]
[311384195,1705072247542,-500.0,0.00022754,2]
[311384197,1705072247552,-500.0,0.00022754,2]
[311384199,1705072247561,-500.0,0.00022754,2]
[311384201,1705072247570,-500.0,0.00022754,2]
[311384203,1705072247580,-500.0,0.00022754,2]
[311384205,1705072247588,-500.0,0.00022754,2]
[311384207,1705072247597,-500.0,0.00022754,2]
[311384209,1705072247607,-500.0,0.00022754,2]
[311384211,1705072247616,-500.0,0.00022754,2]
[311384213,1705072247625,-500.0,0.00022754,2]
[311384215,1705072247638,-500.0,0.00022754,2]
[311384217,1705072247647,-500.0,0.00022754,2]
[311384219,1705072247656,-500.0,0.00022754,2]
[311384221,1705072247666,-500.0,0.00022754,2]
[311384223,1705072247675,-500.0,0.00022754,2]
[311384225,1705072247685,-500.0,0.00022754,2]
[311384227,1705072247694,-500.0,0.00022754,2]
[311384229,1705072247703,-500.0,0.00022754,2]
[311384231,1705072247713,-500.0,0.00022754,2]
[311384233,1705072247722,-531.66504228,0.00022754,2]
[311384235,1705072247731,-500.0,0.00022754,2]
[311384237,1705072247741,-500.0,0.00022754,5]
[311384239,1705072247751,-500.0,0.00022754,2]
[311384241,1705072247760,-500.0,0.00022754,2]
[311384243,1705072247770,-500.0,0.00022754,2]
[311384245,1705072247779,-500.0,0.00022754,2]
[311384247,1705072247788,-500.0,0.00022754,2]
[311384249,1705072247797,-521.47222902,0.00022754,2]
[311384251,1705072247806,-500.0,0.00022754,2]
[311384253,1705072247815,-500.0,0.00022754,2]
[311384255,1705072247825,-500.0,0.00022754,2]
[311384257,1705072247835,-500.0,0.00022754,2]
[311384260,1705072247845,-500.0,0.00022754,2]
[311384262,1705072247854,-500.0,0.00022754,2]
[311384264,1705072247866,-500.0,0.00022754,2]
[311384266,1705072247876,-500.0,0.00022754,2]
[311384268,1705072247888,-500.0,0.00022754,2]
[311384270,1705072247898,-500.0,0.00022754,2]
[311384272,1705072247907,-500.0,0.00022754,2]
[311384274,1705072247917,-500.0,0.00022754,2]
[311384276,1705072247926,-500.0,0.00022754,2]
[311384278,1705072247935,-500.0,0.00022754,2]
[311384280,1705072247944,-500.0,0.00022754,2]
[311384282,1705072247954,-500.0,0.00022754,2]
[311384284,1705072247964,-500.0,0.00022754,2]
[311384286,1705072247973,-500.0,0.00022754,2]
[311384288,1705072247982,-500.0,0.00022754,2]
[311384291,1705072247993,-500.0,0.00022754,2]
[311384293,1705072248003,-500.0,0.00022754,2]
[311384294,1705072248012,-500.0,0.00022754,2]
[311384296,1705072248021,-599.81209633,0.00022754,2]
[311384299,1705072248031,-500.0,0.00022754,2]
[311384301,1705072248040,-500.0,0.00022754,2]
[311384303,1705072248049,-500.0,0.00022754,2]
[311384305,1705072248058,-500.0,0.00022754,2]
[311384307,1705072248067,-500.0,0.00022754,2]
[311384309,1705072248076,-500.0,0.00022754,2]
[311384311,1705072248085,-500.0,0.00022754,2]
[311384313,1705072248097,-500.0,0.00022754,2]
[311384315,1705072248106,-500.0,0.00022754,2]
[311384317,1705072248116,-500.0,0.00022754,2]
[311384319,1705072248125,-500.0,0.00022754,2]
[311384321,1705072248136,-500.0,0.00022754,2]
[311384323,1705072248145,-500.0,0.00022754,2]
[311384325,1705072248154,-500.0,0.00022754,2]
[311384327,1705072248164,-500.0,0.00022754,2]
[311384329,1705072248173,-500.0,0.00022754,2]
[311384331,1705072248183,-500.0,0.00022754,2]
[311384333,1705072248193,-500.0,0.00022754,2]
[311384335,1705072248203,-500.0,0.00022754,2]
[311384337,1705072248212,-500.0,0.00022754,2]
[311384339,1705072248221,-341.79212307,0.00022754,2]
[311384341,1705072248231,-500.0,0.00022754,2]
[311384343,1705072248240,-500.0,0.00022754,2]
[311384345,1705072248249,-500.0,0.00022754,2]
[311384347,1705072248258,-500.0,0.00022754,2]
[311384349,1705072248268,-500.0,0.00022754,2]
[311384351,1705072248277,-500.0,0.00022754,2]
[311384353,1705072248286,-500.0,0.00022754,2]
[311384355,1705072248295,-585.27865798,0.00022754,2]
[311384357,1705072248304,-1830.96307877,0.00022754,2]
[311384359,1705072248314,-382.08904317,0.00022754,2]
[311384361,1705072248324,-500.0,0.00022754,2]
[311384363,1705072248334,-500.0,0.00022754,2]
[311384366,1705072248343,-500.0,0.00022754,2]
[311384368,1705072248353,-500.0,0.00022754,2]
[311384370,1705072248363,-500.0,0.00022754,2]
[311384372,1705072248372,-500.0,0.00022754,2]
[311384374,1705072248382,-500.0,0.00022754,2]
[311384376,1705072248395,-500.0,0.00022754,2]
[311384378,1705072248404,-500.0,0.00022754,2]
[311384380,1705072248413,-543.64847815,0.00022754,2]
[311384382,1705072248423,-500.0,0.00022754,2]
[311384384,1705072248432,-500.0,0.00022754,2]
[311384386,1705072248441,-500.0,0.00022754,2]
[311384388,1705072248451,-500.0,0.00022754,2]
[311384390,1705072248461,-500.0,0.00022754,2]
[311384392,1705072248470,-500.0,0.00022754,2]
[311384394,1705072248479,-500.0,0.00022754,2]
[311384396,1705072248489,-500.0,0.00022754,2]
[311384398,1705072248498,-500.0,0.00022754,2]
[311384399,1705072248508,-500.0,0.00022754,2]
[311384400,1705072248517,-508.62934644,0.00022754,2]
[311384401,1705072248526,-500.0,0.00022754,2]
[311384402,1705072248536,-500.0,0.00022754,2]
[311384403,1705072248545,-500.0,0.00022754,2]
[311384404,1705072248555,-500.0,0.00022754,2]
[311384405,1705072248564,-500.0,0.00022754,2]
[311384406,1705072248574,-500.0,0.00022754,2]
[311384408,1705072248583,-500.0,0.00022754,2]
[311384410,1705072248592,-500.0,0.00022754,2]
[311384412,1705072248602,-500.0,0.00022754,2]
[311384414,1705072248611,-500.0,0.00022754,2]
[311384416,1705072248620,-500.0,0.00022754,2]
[311384418,1705072248629,-500.0,0.00022754,2]
[311384420,1705072248643,-500.0,0.00022754,2]
[311384421,1705072248652,-500.0,0.00022754,2]
[311384424,1705072248666,-500.0,0.00022754,2]
[311384426,1705072248676,-500.0,0.00022754,2]
[311384428,1705072248685,-500.0,0.00022754,2]
[311384430,1705072248694,-500.0,0.00022754,2]
[311384432,1705072248705,-500.0,0.00022754,2]
[311384434,1705072248714,-500.0,0.00022754,2]
[311384436,1705072248723,-500.0,0.00022754,2]
[311384438,1705072248732,-500.0,0.00022754,2]
[311384440,1705072248742,-500.0,0.00022754,2]
[311384441,1705072248751,-500.0,0.00022754,2]
[311384443,1705072248760,-541.06942263,0.00022754,2]
[311384445,1705072248770,-500.0,0.00022754,2]
[311384447,1705072248779,-500.0,0.00022754,2]
[311384449,1705072248788,-500.0,0.00022754,2]
[311384451,1705072248797,-500.0,0.00022754,2]
[311384453,1705072248808,-500.0,0.00022754,2]
[311384456,1705072248818,-500.0,0.00022754,2]
[311384458,1705072248830,-500.0,0.00022754,2]
[311384460,1705072248838,-529.90081865,0.00022754,2]
[311384462,1705072248849,-452.95603331,0.00022754,2]
[311384464,1705072248858,-500.0,0.00022754,2]
[311384466,1705072248867,-500.0,0.00022754,2]
[311384468,1705072248876,-319.56404154,0.00022754,2]
[311384470,1705072248889,-500.0,0.00022754,2]
[311384472,1705072248898,-500.0,0.00022754,2]
[311384474,1705072248909,-500.0,0.00022754,2]
[311384476,1705072248918,-500.0,0.00022754,2]
[311384478,1705072248927,-177.65129562,0.00022754,2]
[311384480,1705072248936,-500.0,0.00022754,2]
[311384482,1705072248946,-500.0,0.00022754,2]
[311384484,1705072248955,-500.0,0.00022754,2]
[311384486,1705072248964,-500.0,0.00022754,2]
[311384488,1705072248974,-500.0,0.00022754,2]
[311384490,1705072248983,-500.0,0.00022754,2]
[311384492,1705072248993,-500.0,0.00022754,2]
[311384494,1705072249002,-500.0,0.00022754,2]
[311384496,1705072249011,-500.0,0.00022754,2]
[311384498,1705072249020,-500.0,0.00022754,2]
[311384499,1705072249030,-500.0,0.00022754,2]
[311384501,1705072249039,-500.0,0.00022754,2]
[311384503,1705072249048,-500.0,0.00022754,2]
[311384504,1705072249058,-500.0,0.00022754,2]
[311384505,1705072249067,-1125.57,0.00022754,2]
[311384506,1705072249078,-291.28,0.00022754,2]
[311384507,1705072249089,-500.0,0.00022754,2]
[311384508,1705072249098,-500.0,0.00022754,2]
[311384509,1705072249107,-500.0,0.00022754,2]
[311384510,1705072249116,-500.0,0.00022754,2]
[311384511,1705072249126,-500.0,0.00022754,2]
[311384512,1705072249136,-500.0,0.00022754,2]
[311384513,1705072249145,-500.0,0.00022754,2]
[311384514,1705072249154,-500.0,0.00022754,2]
[311384515,1705072249165,-500.0,0.00022754,2]
[311384516,1705072249174,-500.0,0.00022754,2]
[311384517,1705072249183,-500.0,0.00022754,2]
[311384519,1705072249192,-500.0,0.00022754,2]
[311384520,1705072249201,-500.0,0.00022754,2]
[311384521,1705072249212,-500.0,0.00022754,2]
[311384522,1705072249221,-500.0,0.00022754,2]
[311384523,1705072249230,-500.0,0.00022754,2]
[311384524,1705072249240,-500.0,0.00022754,2]
[311384525,1705072249250,-500.0,0.00022754,2]
[311384526,1705072249259,-500.0,0.00022754,2]
[311384527,1705072249270,-500.0,0.00022754,2]
[311384528,1705072249280,-500.0,0.00022754,2]
[311384529,1705072249289,-500.0,0.00022754,2]
[311384530,1705072249298,-500.0,0.00022754,2]
[311384531,1705072249310,-500.0,0.00022754,2]
[311384532,1705072249320,-500.0,0.00022754,2]
[311384533,1705072249330,-500.0,0.00022754,2]
[311384534,1705072249339,-500.0,0.00022754,2]
[311384535,1705072249349,-500.0,0.00022754,2]
[311384536,1705072249358,-500.0,0.00022754,2]
[311384537,1705072249368,-500.0,0.00022754,2]
[311384538,1705072249377,-500.0,0.00022754,2]
[311384539,1705072249389,-500.0,0.00022754,2]
[311384540,1705072249399,-500.0,0.00022754,2]
[311384541,1705072249409,-500.0,0.00022754,2]
[311384542,1705072249419,-500.0,0.00022754,2]
[311384543,1705072249429,-500.0,0.00022754,2]
[311384544,1705072249439,-500.0,0.00022754,2]
[311384545,1705072249449,-500.0,0.00022754,2]
[311384546,1705072249461,-500.0,0.00022754,2]
[311384547,1705072249472,-206.11855836,0.00022754,2]
[311384548,1705072249481,-500.0,0.00022754,2]
[311384549,1705072249491,-500.0,0.00022754,2]
[311384550,1705072249501,-500.0,0.00022754,2]
[311384551,1705072249510,-500.0,0.00022754,2]
[311384552,1705072249520,-500.0,0.00022754,2]
[311384553,1705072249530,-500.0,0.00022754,2]
[311384554,1705072249540,-500.0,0.00022754,2]
[311384555,1705072249551,-500.0,0.00022754,2]
[311384556,1705072249560,-535.10351517,0.00022754,2]
[311384557,1705072249570,-500.0,0.00022754,2]
[311384558,1705072249579,-500.0,0.00022754,2]
[311384559,1705072249588,-500.0,0.00022754,2]
[311384560,1705072249598,-500.0,0.00022754,2]
[311384561,1705072249607,-500.0,0.00022754,2]
[311384562,1705072249616,-500.0,0.00022754,2]
[311384563,1705072249626,-500.0,0.00022754,2]
[311384564,1705072249636,-501.75060588,0.00022754,2]
[311384565,1705072249645,-500.0,0.00022754,2]
[311384566,1705072249655,-500.0,0.00022754,2]
[311384567,1705072249665,-500.0,0.00022754,2]
[311384568,1705072249675,-500.0,0.00022754,2]
[311384569,1705072249684,-500.0,0.00022754,2]
[311384570,1705072249693,-500.0,0.00022754,2]
[311384571,1705072249703,-83005.3819,0.00022755,2]
[311384572,1705072249713,-500.0,0.00022758,2]
[311384573,1705072249722,-500.0,0.00022776,2]
[311384574,1705072249731,-554.44353284,0.00022786,2]
[311384575,1705072249740,-500.0,0.00022795,2]
[311384576,1705072249750,-500.0,0.00022813,2]
[311384577,1705072249760,-554.44353284,0.00022824,2]
[311384578,1705072249769,-500.0,0.00022831,2]
[311384579,1705072249779,-500.0,0.00022849,2]
[311384580,1705072249788,-226.48821027,0.00022854,2]
[311384581,1705072249797,-500.0,0.00022854,2]
[311384582,1705072249854,-500.0,0.00022854,2]
[311384583,1705072249863,-500.0,0.00022854,2]
[311384584,1705072249872,-80184.62555148,0.00022855,2]
[311384585,1705072249882,-500.0,0.00022855,2]
[311384586,1705072249896,-500.0,0.00022855,2]
[311384587,1705072249908,-632.3,0.00022855,2]
[311384588,1705072249918,-500.0,0.00022855,2]
[311384589,1705072249927,-500.0,0.00022855,2]
[311384590,1705072249937,-378.34,0.00022855,2]
[311384591,1705072249947,-500.0,0.00022855,2]
[311384592,1705072249957,-500.0,0.00022855,5]
[311384593,1705072249966,-333.36,0.00022855,2]
[311384594,1705072249975,-500.0,0.00022855,2]
[311384595,1705072249985,-500.0,0.00022855,2]
[311384596,1705072249994,-500.0,0.00022855,2]
[311384597,1705072250004,-618.9,0.00022855,2]
[311384598,1705072250013,-527.53,0.00022855,2]
[311384599,1705072250022,-476.32,0.00022855,2]
[311384600,1705072250031,-500.0,0.00022855,2]
[311384601,1705072250041,-500.0,0.00022855,2]
[311384602,1705072250051,-500.0,0.00022855,2]
[311384603,1705072250061,-500.0,0.00022855,2]
[311384604,1705072250070,-500.0,0.00022855,2]
[311384605,1705072250080,-500.0,0.00022855,5]
[311384606,1705072250090,-500.0,0.00022855,2]
[311384607,1705072250099,-500.0,0.00022855,2]
[311384608,1705072250109,-567.7,0.00022855,2]
[311384609,1705072250118,-500.0,0.00022855,2]
[311384610,1705072250128,-500.0,0.00022855,2]
[311384611,1705072250138,-500.0,0.00022855,2]
[311384612,1705072250147,-500.0,0.00022855,2]
[311384613,1705072250158,-248.43,0.00022855,2]
[311384614,1705072250168,-500.0,0.00022855,2]
[311384615,1705072250178,-500.0,0.00022855,2]
[311384616,1705072250188,-303.64,0.00022855,2]
[311384617,1705072250198,-500.0,0.00022855,2]
[311384618,1705072250207,-191.97,0.00022855,2]
[311384619,1705072250217,-500.0,0.00022855,2]
[311384620,1705072250226,-500.0,0.00022856,2]
[311384621,1705072250236,-500.0,0.00022856,2]
[311384622,1705072250246,-500.0,0.00022856,2]
[311384623,1705072250256,-500.0,0.00022856,2]
[311384624,1705072250265,-500.0,0.00022856,2]
[311384625,1705072250274,-500.0,0.00022856,2]
[311384626,1705072250283,-500.0,0.00022856,2]
[311384627,1705072250293,-500.0,0.00022856,2]
[311384628,1705072250302,-500.0,0.00022856,2]
[311384629,1705072250311,-552.34,0.00022856,2]
[311384630,1705072250321,-500.0,0.00022856,2]
[311384631,1705072250330,-188.53,0.00022856,2]
[311384632,1705072250339,-597.3,0.00022856,2]
[311384633,1705072250349,-500.0,0.00022856,2]
[311384634,1705072250359,-500.0,0.00022856,2]
[311384635,1705072250368,-638.71832666,0.00022856,2]
[311384636,1705072250378,-500.0,0.00022856,2]
[311384637,1705072250389,-500.0,0.00022856,2]
[311384638,1705072250399,-500.0,0.00022856,2]
[311384639,1705072250408,-500.0,0.00022856,2]
[311384640,1705072250418,-500.0,0.00022856,2]
[311384641,1705072250427,-500.0,0.00022856,2]
[311384642,1705072250437,-500.0,0.00022856,2]
[311384643,1705072250447,-500.0,0.00022856,2]
[311384644,1705072250457,-500.0,0.00022856,2]
[311384645,1705072250466,-500.0,0.00022856,2]
[311384646,1705072250475,-500.0,0.00022856,2]
[311384647,1705072250485,-500.0,0.00022856,2]
[311384648,1705072250495,-500.0,0.00022856,2]
[311384649,1705072250504,-500.0,0.00022856,2]
[311384650,1705072250514,-500.0,0.00022856,2]
[311384651,1705072250523,-500.0,0.00022856,2]
[311384652,1705072250533,-500.0,0.00022856,2]
[311384653,1705072250543,-500.0,0.00022856,2]
[311384654,1705072250553,-500.0,0.00022856,2]
[311384655,1705072250563,-564.95610559,0.00022856,2]
[311384656,1705072250572,-500.0,0.00022856,2]
[311384657,1705072250582,-500.0,0.00022856,2]
[311384658,1705072250591,-500.0,0.00022856,2]
[311384659,1705072250600,-500.0,0.00022856,2]
[311384660,1705072250610,-1720.71,0.00022856,2]
[311384661,1705072250620,-500.0,0.00022856,2]
[311384662,1705072250629,-500.0,0.00022856,2]
[311384663,1705072250639,-500.0,0.00022856,2]
[311384664,1705072250648,-500.0,0.00022856,2]
[311384665,1705072250657,-647.76674282,0.00022856,2]
[311384666,1705072250666,-500.0,0.00022856,2]
[311384667,1705072250676,-500.0,0.00022856,2]
[311384668,1705072250685,-500.0,0.00022856,2]
[311384669,1705072250695,-500.0,0.00022856,2]
[311384670,1705072250704,-500.0,0.00022856,2]
[311384671,1705072250714,-500.0,0.00022856,2]
[311384672,1705072250724,-500.0,0.00022856,2]
[311384673,1705072250733,-500.0,0.00022856,2]
[311384674,1705072250742,-500.0,0.00022856,2]
[311384675,1705072250752,-500.0,0.00022856,2]
[311384676,1705072250761,-500.0,0.00022856,2]
[311384677,1705072250771,-513.2,0.00022856,2]
[311384678,1705072250780,-500.0,0.00022856,2]
[311384679,1705072250790,-500.0,0.00022856,2]
[311384680,1705072250800,-500.0,0.00022856,2]
[311384681,1705072250809,-500.0,0.00022856,2]
[311384682,1705072250819,-500.0,0.00022856,2]
[311384683,1705072250828,-500.0,0.00022856,2]
[311384684,1705072250837,-500.0,0.00022856,2]
[311384685,1705072250846,-500.0,0.00022856,2]
[311384686,1705072250856,-500.0,0.00022856,2]
[311384687,1705072250865,-500.0,0.00022856,2]
[311384688,1705072250875,-554.44353284,0.00022862,2]
[311384689,1705072250886,-500.0,0.00022868,2]
[311384690,1705072250898,-500.0,0.00022886,2]
[311384691,1705072250907,-500.0,0.00022899,2]
[311384692,1705072250917,-500.0,0.00022899,2]
[311384693,1705072250926,-250.0,0.000229,2]
[311384694,1705072250937,-80000.00000099,0.000229,2]
[311384695,1705072250946,-160.93328731,0.000229,2]
[311384696,1705072250955,-10030.35575724,0.000229,2]
[311384697,1705072250964,-500.9822289,0.000229,2]
[311384698,1705072250974,-8860.26,0.000229,2]
[311384699,1705072250984,-8860.27,0.000229,2]
[311384700,1705072250994,-746.49666263,0.000229,2]
[311384701,1705072251003,-9345.65691444,0.000229,2]
[311384702,1705072251013,-3512.1367066,0.000229,2]
[311384703,1705072251022,-336.0320102,0.000229,2]
[311384704,1705072251031,-254.38356953,0.000229,2]
[311384705,1705072251040,-554.44353284,0.000229,2]
[311384706,1705072251050,-201.04231172,0.000229,2]
[311384707,1705072251059,-500.0,0.00022904,2]
[311384708,1705072251068,-500.0,0.00022922,2]
[311384709,1705072251077,-500.0,0.00022941,2]
[311384710,1705072251086,-500.0,0.00022959,2]
[311384711,1705072251096,-500.0,0.00022977,2]
[311384712,1705072251105,-165.85748834,0.0002299,2]
[311384713,1705072251114,-622.66482875,0.00022996,2]
[311384714,1705072251124,-155.31998547,0.00022997,2]
[311384715,1705072251134,-260.56749303,0.00022997,2]
[311384716,1705072251145,-474.70449026,0.00022997,2]
[311384717,1705072251154,-500.0,0.00022997,2]
[311384718,1705072251163,-500.0,0.00022997,2]
[311384719,1705072251173,-335.70955852,0.00022998,2]
[311384720,1705072251182,-155.0,0.00022998,2]
[311384721,1705072251191,-322.97657694,0.00022998,2]
[311384722,1705072251201,-232.81085492,0.00022998,2]
[311384723,1705072251211,-208.38724354,0.00022998,2]
[311384724,1705072251220,-266.98434648,0.00022998,2]
[311384725,1705072251229,-243.40859199,0.00022998,2]
[311384726,1705072251238,-155.0,0.00022998,2]
[311384727,1705072251248,-206.91186275,0.00022998,2]
[311384728,1705072251257,-156.17916202,0.00022998,2]
[311384729,1705072251266,-331.91038392,0.00022998,2]
[311384730,1705072251276,-336.69086329,0.00022998,2]
[311384731,1705072251286,-1254.29701492,0.00022998,2]
[311384732,1705072251295,-155.0,0.00022998,2]
[311384733,1705072251305,-843.00113502,0.00022998,2]
[311384734,1705072251315,-4066.87594077,0.00022998,2]
[311384735,1705072251325,-199.14622771,0.00022998,2]
[311384736,1705072251334,-156.4406459,0.00022998,2]
[311384737,1705072251344,-2301.96599868,0.00022998,2]
[311384738,1705072251353,-207.83148372,0.00022998,2]
[311384739,1705072251362,-157.39865583,0.00022998,2]
[311384740,1705072251372,-4618.23464796,0.00022998,2]
[311384741,1705072251381,-241.61161094,0.00022998,2]
[311384742,1705072251391,-155.3862727,0.00022998,2]
[311384743,1705072251401,-155.0,0.00022998,2]
[311384744,1705072251410,-285.26038722,0.00022998,2]
[311384745,1705072251420,-198.02258112,0.00022998,2]
[311384746,1705072251429,-155.52034948,0.00022998,2]
[311384747,1705072251438,-2554.84248271,0.00022998,2]
[311384748,1705072251448,-326.69313074,0.00022998,2]
[311384749,1705072251457,-583.18327659,0.00022998,2]
[311384750,1705072251466,-373.92735783,0.00022998,2]
[311384751,1705072251476,-323.634376,0.00022998,2]
[311384752,1705072251485,-1922.43002243,0.00022998,2]
[311384753,1705072251495,-155.55901181,0.00022998,2]
[311384754,1705072251504,-155.0,0.00022998,2]
[311384755,1705072251514,-159.96179051,0.00022998,2]
[311384756,1705072251523,-155.0,0.00022998,2]
[311384757,1705072251533,-330.25821039,0.00022998,2]
[311384758,1705072251543,-200.8130963,0.00022998,2]
[311384759,1705072251552,-183.06289581,0.00022998,2]
[311384760,1705072251562,-155.1313233,0.00022998,2]
[311384761,1705072251572,-701.93510545,0.00022998,2]
[311384762,1705072251581,-765.33424633,0.00022998,2]
[311384763,1705072251591,-155.0,0.00022998,2]
[311384764,1705072251600,-200.81745024,0.00022998,2]
[311384765,1705072251609,-2149.20238571,0.00022998,2]
[311384766,1705072251618,-185.42771038,0.00022998,2]
[311384767,1705072251627,-156.1102291,0.00022998,2]
[311384768,1705072251638,-251.79727683,0.00022998,2]
[311384769,1705072251646,-155.19889994,0.00022998,2]
[311384770,1705072251655,-217.32566192,0.00022998,2]
[311384771,1705072251665,-12970.59011421,0.00022999,2]
[311384772,1705072251674,-301.66001693,0.00022999,2]
[311384773,1705072251683,-157.15051088,0.00022999,2]
[311384774,1705072251692,-223.92574334,0.00022999,2]
[311384775,1705072251701,-233.76777463,0.00022999,2]
[311384776,1705072251710,-360.0278767,0.00022999,2]
[311384777,1705072251719,-213.42804886,0.00022999,2]
[311384778,1705072251729,-513.52521044,0.00022999,2]
[311384779,1705072251738,-1432.05814376,0.00022999,2]
[311384780,1705072251747,-317.68758824,0.00022999,2]
[311384781,1705072251757,-150.0,0.00022999,2]
[311384782,1705072251766,-150.0,0.00022999,2]
[311384783,1705072251776,-150.0,0.00022999,2]
[311384784,1705072251785,-150.0,0.00022999,2]
[311384785,1705072251794,-150.0,0.00022999,2]
[311384786,1705072251804,-150.0,0.00022999,2]
[311384787,1705072251813,-150.0,0.00022999,2]
[311384788,1705072251822,-150.0,0.00022999,2]
[311384789,1705072251831,-150.0,0.00022999,2]
[311384790,1705072251841,-150.0,0.00022999,2]
[311384791,1705072251850,-150.0,0.00022999,2]
[311384792,1705072251859,-150.0,0.00022999,2]
[311384793,1705072251868,-150.0,0.00022999,2]
[311384794,1705072251878,-150.0,0.00022999,2]
[311384795,1705072251888,-1065936.68700324,0.00023,2]
[311384796,1705072252055,-48431.79730696,0.00023,2]
[311384797,1705072252066,-4096.72364498,0.00023,2]
[311384798,1705072252109,-500.0,0.00022581,2]
[311384799,1705072252119,-361689.77038081,0.00023,2]
[311384800,1705072252130,-250.58399988,0.00023,2]
[311384801,1705072252145,-562.44851433,0.00023,2]
[311384802,1705072252209,-1249.794715,0.00022525,2]
[311384803,1705072252222,-893.19532746,0.00022525,2]
[311384804,1705072252231,-118.79855775,0.00022582,2]
[311384805,1705072252278,-381.20144225,0.00022582,2]
[311384806,1705072252287,-12881.61291656,0.00023,2]